bitfinex/quotes_ETHUSD_20240823
["timestamp","ask_amount","ask_price","bid_price","bid_amount"]
[1724449651024,3.60417,2774.6,2773.8,13.19766]
[1724449651229,3.60433,2774.5,2773.8,13.19766]
[1724449652829,3.60433,2774.5,2773.8,3.60516]
[1724449653035,3.60433,2774.5,2773.9,9.654]
[1724449653247,3.60416,2774.6,2773.9,9.654]
[1724449653382,3.0,2774.8,2774.1,3.60476]
[1724449653584,3.0,2774.7,2774.2,3.60462]
[1724449654007,3.0,2775.0,2774.2,3.60462]
[1724449654206,3.0,2775.0,2774.3,9.654]
[1724449654448,3.60325,2775.3,2774.3,9.654]
[1724449654652,3.60325,2775.3,2774.4,3.60437]
[1724449655063,2.0,2775.4,2774.6,3.60411]
[1724449655229,2.0,2775.4,2774.7,13.25797]
[1724449655435,2.0,2775.4,2774.7,11.340208]
[1724449656260,3.60335,2775.2,2774.4,3.60434]
[1724449656417,3.60335,2775.2,2774.2,4.32551]
[1724449656418,3.60356,2775.1,2774.2,4.32551]
[1724449656617,3.60356,2775.1,2774.2,3.60456]
[1724449656858,3.60361,2775.0,2774.2,3.60456]
[1724449657962,3.60384,2774.9,2774.0,3.6049]
[1724449658276,3.604,2774.7,2773.9,13.25902]
[1724449658631,3.0,2774.6,2773.9,13.25902]
[1724449658860,3.0,2774.6,2774.0,1.7585182]
[1724449659157,3.0,2774.6,2773.9,13.25902]
[1724449659158,6.60412,2774.6,2773.9,9.654]
[1724449659359,16.33682,2774.6,2773.8,4.326122]
[1724449659865,3.0,2774.6,2773.9,3.60501]
[1724449660155,6.60407,2774.7,2774.0,9.8987]
[1724449660722,7.2084,2774.6,2774.0,9.8987]
[1724449661187,7.2084,2774.6,2773.6,3.60536]
[1724449661188,3.60417,2774.6,2773.7,9.8987]
[1724449661352,7.20898,2774.4,2773.7,9.8987]
[1724449661543,6.60453,2774.3,2773.6,3.60536]
[1724449661728,6.60453,2774.3,2773.6,5.97877172]
[1724449663038,3.60464,2774.2,2773.6,2.37341172]
[1724449663789,7.20939,2774.2,2773.5,6.6244372]
[1724449663923,3.60464,2774.2,2773.5,6.6244372]
[1724449664121,3.60552,2773.6,2773.3,19.34]
[1724449664433,3.60552,2773.6,2772.8,9.8987]
[1724449664434,3.60562,2773.5,2772.8,9.8987]
[1724449664655,6.60562,2773.5,2772.9,3.74146478]
[1724449665023,6.60562,2773.5,2772.7,35.40656]
[1724449665267,6.60562,2773.5,2772.7,22.94656]
[1724449665421,3.60592,2773.3,2772.6,6.6244372]
[1724449665762,3.60579,2773.4,2772.6,6.6244372]
[1724449665763,3.60605,2773.2,2772.6,6.6244372]
[1724449666171,3.6062,2773.0,2772.6,6.6244372]
[1724449666671,3.60655,2772.8,2772.0,10.2318772]
[1724449666845,3.60655,2772.8,2772.1,2.01305772]
[1724449667974,7.21311,2772.8,2772.1,2.01305772]
[1724449668125,3.60655,2772.8,2772.1,2.01305772]
[1724449668478,7.21312,2772.8,2772.1,2.01305772]
[1724449668843,3.60655,2772.8,2772.1,2.01305772]
[1724449669738,4.15948987,2773.6,2772.1,2.01305772]
[1724449669739,3.60527,2773.8,2772.8,9.8987]
[1724449669940,3.60527,2773.8,2772.9,0.07211586]
[1724449670167,3.60467,2774.2,2773.2,9.8987]
[1724449670722,3.60467,2774.2,2773.5,3.60552]
[1724449671538,3.0,2774.1,2773.5,3.60552]
[1724449671839,7.20892,2774.4,2773.5,7.932114]
[1724449672056,3.60445,2774.4,2773.5,4.326584]
[1724449672258,3.60445,2774.4,2773.7,9.4236]
[1724449672445,13.97728987,2775.2,2773.8,0.07209801]
[1724449672446,3.60399,2774.7,2773.8,0.07209801]
[1724449672880,3.6042,2774.6,2773.8,3.67721801]
[1724449673686,3.0,2774.5,2773.8,3.60512]
[1724449674192,3.0,2774.5,2774.1,3.60469]
[1724449674481,3.0,2774.7,2774.3,9.4236]
[1724449674683,6.60369,2775.0,2774.3,9.4236]
[1724449675385,6.60369,2775.0,2774.3,13.02807]
[1724449675567,3.60369,2775.0,2774.3,11.1229229]
[1724449676241,3.60373,2774.9,2774.3,11.1229229]
[1724449677660,7.20712,2775.1,2774.3,11.1229229]
[1724449677863,3.0,2775.0,2774.3,11.1229229]
[1724449678087,6.60364,2775.0,2774.3,11.1229229]
[1724449678248,6.60364,2775.0,2774.4,0.41964765]
[1724449678588,6.60364,2775.0,2774.3,11.1229229]
[1724449681345,3.60382,2774.9,2774.3,11.1229229]
[1724449681579,3.60382,2774.9,2774.1,3.965149]
[1724449681786,3.60387,2774.8,2774.1,3.965149]
[1724449683592,3.60412,2774.6,2773.9,9.45]
[1724449683746,3.60412,2774.6,2773.8,3.60505]
[1724449683981,7.20833,2774.6,2773.8,3.60505]
[1724449684179,3.60433,2774.5,2773.8,3.60505]
[1724449684402,3.60438,2774.4,2773.6,13.05533]
[1724449684583,3.0,2774.3,2773.6,16.66067]
[1724449684787,3.0,2774.3,2773.6,13.05533]
[1724449684987,3.0,2774.3,2773.7,3.60529]
[1724449685213,3.0,2774.3,2773.6,13.05533]
[1724449686715,3.0,2774.3,2773.7,3.6052]
[1724449687215,3.0,2774.3,2773.7,5.271253]
[1724449687419,6.60453,2774.3,2773.6,13.05533]
[1724449688137,15.61993,2774.3,2773.6,3.60533]
[1724449688525,3.60478,2774.1,2773.4,3.60562]
[1724449688861,3.60465,2774.2,2773.4,5.271755]
[1724449689141,12.0154,2774.3,2773.6,3.60538]
[1724449689493,15.61992,2774.3,2773.6,3.60538]
[1724449691624,12.0154,2774.3,2773.7,3.60526]
[1724449691825,3.0,2774.3,2773.7,3.60526]
[1724449692023,3.0,2774.3,2773.3,9.45]
[1724449692024,3.60516,2773.8,2773.3,9.45]
[1724449692361,3.60516,2773.8,2773.2,3.60585]
[1724449692680,3.60542,2773.6,2772.8,7.21279]
[1724449692834,3.60542,2773.6,2772.9,1.710719]
[1724449693033,3.0,2773.5,2772.8,3.60635]
[1724449693439,6.60559,2773.5,2772.8,7.21274]
[1724449693658,6.60559,2773.5,2772.8,3.60635]
[1724449694537,6.60559,2773.5,2772.8,7.21273]
[1724449694737,6.60559,2773.5,2772.8,3.60635]
[1724449694939,6.60559,2773.5,2772.8,5.317089]
[1724449695582,3.60587,2773.3,2772.6,3.60664]
[1724449696176,3.60595,2773.2,2772.4,13.50129]
[1724449696367,3.60595,2773.2,2772.5,3.60677]
[1724449696568,3.60595,2773.2,2772.5,5.317576]
[1724449697064,13.05865,2773.2,2772.5,5.317576]
[1724449697833,13.05865,2773.2,2772.5,8.924356]
[1724449698072,13.05865,2773.2,2772.6,3.60672]
[1724449698286,9.4527,2773.2,2772.6,3.60672]
[1724449698448,3.60573,2773.4,2772.7,3.60656]
[1724449700293,3.60601,2773.2,2772.5,3.60677]
[1724449701430,3.60601,2773.2,2772.4,9.8944]
[1724449701599,3.60615,2773.1,2772.4,9.8944]
[1724449701797,13.05863,2773.3,2772.5,4.0994059]
[1724449701995,6.60601,2773.2,2772.5,4.0994059]
[1724449702326,6.60601,2773.2,2772.4,9.8944]
[1724449702327,3.0,2773.2,2772.4,9.8944]
[1724449702512,3.0,2773.2,2772.0,4.15948987]
[1724449702513,6.60601,2773.2,2772.1,9.8944]
[1724449702732,3.6063,2773.0,2772.3,3.60709]
[1724449702934,7.21257,2773.0,2772.3,3.60709]
[1724449703087,3.60627,2773.0,2772.3,3.60709]
[1724449703283,7.21255,2773.0,2772.3,3.60709]
[1724449703489,3.60635,2772.9,2772.3,3.60709]
[1724449703688,3.60635,2772.9,2772.1,17.10892]
[1724449703932,3.60635,2772.9,2772.1,15.62849099]
[1724449704231,3.60647,2772.8,2772.1,5.73409099]
[1724449704529,3.60647,2772.8,2772.1,3.60725]
[1724449704684,3.60647,2772.8,2772.1,7.21455]
[1724449704887,9.4527,2772.9,2772.2,3.60724]
[1724449705499,3.60623,2773.0,2772.3,3.60708]
[1724449705695,3.60623,2773.0,2772.3,17.829953]
[1724449705999,3.0,2773.2,2772.4,3.60691]
[1724449706400,6.60583,2773.3,2772.6,3.60665]
[1724449707151,3.0,2773.3,2772.6,3.60665]
[1724449707303,6.60583,2773.3,2772.6,3.60665]
[1724449708732,3.0,2773.3,2772.6,3.60665]
[1724449708908,3.0,2773.3,2772.6,7.2133]
[1724449709105,3.0,2773.3,2772.6,3.60665]
[1724449709310,7.211,2773.6,2772.8,13.50076]
[1724449709505,6.60555,2773.5,2772.8,13.50076]
[1724449710161,6.60555,2773.5,2772.8,3.60636]
[1724449710952,3.60568,2773.4,2772.6,7.21324]
[1724449711156,3.60568,2773.4,2772.7,3.60655]
[1724449711477,3.60568,2773.4,2772.8,9.8944]
[1724449712357,3.0,2773.5,2772.8,9.8944]
[1724449713415,3.60512,2773.9,2773.1,3.60594]
[1724449713416,3.0,2773.7,2773.1,3.60594]
[1724449713612,3.60493,2774.0,2773.2,9.2995]
[1724449714084,3.60395,2774.8,2773.2,9.2995]
[1724449714085,3.60452,2774.3,2773.5,3.60543]
[1724449714434,3.60452,2774.3,2773.2,10.590044]
[1724449714435,13.39961,2774.5,2773.7,3.60521]
[1724449714835,3.60407,2774.7,2773.6,9.2995]
[1724449715068,3.60407,2774.7,2774.1,9.2995]
[1724449715281,13.39917,2774.8,2774.1,9.2995]
[1724449715460,3.60387,2774.8,2774.1,9.2995]
[1724449715980,3.60387,2774.8,2774.1,12.90424]
[1724449716343,3.604,2774.7,2774.1,9.2995]
[1724449718889,3.6038,2774.9,2774.1,12.9042]
[1724449719061,3.60399,2774.7,2774.1,12.9042]
[1724449720001,3.60399,2774.7,2773.8,13.49918]
[1724449720980,3.60399,2774.7,2774.0,3.60482]
[1724449721301,3.60399,2774.7,2774.0,3.60481]
[1724449721534,3.60399,2774.7,2774.0,7.20962]
[1724449721706,3.60399,2774.7,2774.1,3.60476]
[1724449722210,3.60399,2774.7,2774.0,3.60481]
[1724449722366,3.60399,2774.7,2774.0,7.20963]
[1724449722700,3.60399,2774.7,2774.1,3.60476]
[1724449722907,6.60386,2774.8,2774.1,3.60476]
[1724449723201,6.60386,2774.8,2774.0,3.6048]
[1724449723362,6.60386,2774.8,2774.1,3.60475]
[1724449725431,6.60386,2774.8,2774.0,3.6048]
[1724449725835,6.60386,2774.8,2774.0,7.20959]
[1724449727091,6.60386,2774.8,2774.1,3.60477]
[1724449727433,3.604,2774.7,2774.0,7.2096]
[1724449727583,3.0,2774.8,2774.1,3.60474]
[1724449727787,6.60393,2774.8,2774.1,3.60474]
[1724449729117,9.9559,2774.7,2774.1,3.60474]
[1724449729326,13.55991,2774.7,2774.1,3.60474]
[1724449729710,3.60401,2774.7,2774.1,3.60474]
[1724449730107,3.0,2774.8,2774.1,3.60474]
[1724449730321,6.60391,2774.8,2774.1,3.60474]
[1724449734469,6.60393,2774.8,2774.1,3.60474]
[1724449735142,6.60393,2774.8,2774.1,7.20944]
[1724449735343,6.60393,2774.8,2774.1,3.6047]
[1724449736445,6.60393,2774.8,2774.2,9.0815]
[1724449736846,3.60401,2774.7,2774.2,9.0815]
[1724449738081,3.0,2774.8,2774.2,9.0815]
[1724449738461,6.60392,2774.8,2774.1,3.6047]
[1724449739050,3.60399,2774.7,2774.1,3.6047]
[1724449739438,6.60386,2774.8,2774.1,3.6047]
[1724449741174,3.0,2774.8,2774.3,9.4844]
[1724449741332,6.60376,2774.9,2774.3,9.4844]
[1724449743276,10.20758,2774.9,2774.3,9.4844]
[1724449743487,6.60376,2774.9,2774.3,9.4844]
[1724449743682,10.20759,2774.9,2774.3,9.4844]
[1724449743881,6.60376,2774.9,2774.3,9.4844]
[1724449744688,10.20757,2774.9,2774.3,9.4844]
[1724449744840,6.60376,2774.9,2774.3,9.4844]
[1724449745042,3.60397,2774.8,2774.3,9.4844]
[1724449748452,6.60376,2774.9,2774.3,9.4844]
[1724449749390,10.20758,2774.9,2774.3,9.4844]
[1724449749879,6.60376,2774.9,2774.3,9.4844]
[1724449750183,3.0,2774.9,2774.3,14.397692]
[1724449750389,3.0,2774.9,2774.5,9.4844]
[1724449750697,3.0,2775.2,2774.5,9.4844]
[1724449751053,3.60327,2775.3,2774.5,13.08863]
[1724449751287,3.60327,2775.3,2774.6,1.308863]
[1724449751955,2.0,2775.4,2774.7,9.4743]
[1724449753370,2.0,2775.4,2774.8,3.60384]
[1724449753985,2.0,2775.4,2774.9,9.4743]
[1724449755965,2.0,2775.4,2774.9,13.07802]
[1724449761965,2.0,2775.4,2774.9,9.4743]
[1724449762397,2.0,2775.4,2774.9,11.142512]
[1724449762765,2.0,2775.4,2774.9,1.668212]
[1724449762983,2.0,2775.4,2774.8,3.60385]
[1724449763163,2.0,2775.4,2774.9,3.60372]
[1724449764406,2.0,2775.4,2775.0,9.4069]
[1724449766483,2.0,2775.4,2775.1,3.6034]
[1724449767073,2.0,2775.4,2775.2,9.4069]
[1724449767307,2.0,2775.4,2775.2,10.70793]
[1724449767483,2.0,2775.4,2775.2,9.4069]
[1724449770943,2.0,2775.4,2775.3,3.60321]
[1724449771300,2.0,2775.4,2775.3,16.61332]
[1724449784314,2.0,2775.4,2775.3,20.21653]
[1724449784663,2.0,2775.4,2775.3,22.238183]
[1724449788722,2.0,2775.4,2775.3,18.634973]
[1724449791365,2.0,2775.4,2775.3,19.184973]
[1724449794638,2.0,2775.4,2775.3,22.788183]
[1724449799266,2.0,2775.4,2775.3,13.381283]
[1724449803293,2.0,2775.4,2775.3,9.778073]
[1724449804547,2.0,2775.4,2775.3,7.75642]
[1724449805187,11.3122,2775.4,2775.0,36.036036]
[1724449805395,3.60326,2775.3,2775.0,36.036036]
[1724449805591,9.3122,2775.2,2775.0,36.036036]
[1724449805811,2.0,2775.4,2775.0,36.036036]
[1724449807015,5.60309,2775.4,2775.0,36.036036]
[1724449807219,2.0,2775.4,2775.0,36.036036]
[1724449811325,5.60308,2775.4,2775.0,36.036036]
[1724449811479,4.23773232,2775.4,2775.0,36.036036]
[1724449813091,9.1544,2775.3,2775.0,36.036036]
[1724449813428,3.60334,2775.2,2775.0,36.036036]
[1724449814928,9.1544,2775.3,2775.0,36.036036]
[1724449816840,1.19954845,2775.4,2775.0,39.639636]
[1724449817044,1.19954845,2775.4,2775.0,42.20119389]
[1724449818246,1.19954845,2775.4,2775.0,39.639636]
[1724449819959,1.19954845,2775.4,2775.0,39.639566]
[1724449821171,1.19954845,2775.4,2775.2,3.60333]
[1724449821349,1.19954845,2775.4,2775.3,12.72491]
[1724449822363,1.19954845,2775.4,2775.3,16.87812]
[1724449822521,0.63465232,2775.4,2775.3,18.565932]
[1724449822919,0.63465232,2775.4,2775.3,22.169142]
[1724449825156,0.63465232,2775.4,2775.3,22.169142]
[1724449828139,0.63465232,2775.4,2775.3,42.009142]
[1724449830466,0.63465232,2775.4,2775.3,38.405932]
[1724449831767,0.63465232,2775.4,2775.3,29.284232]
[1724449832066,0.63465232,2775.4,2775.3,25.681022]
[1724449832733,0.63465232,2775.4,2775.3,29.284232]
[1724449834123,0.63465232,2775.4,2775.3,9.444232]
[1724449841791,0.63465232,2775.4,2775.3,18.764932]
[1724449846021,0.63465232,2775.4,2775.3,38.604932]
[1724449851303,0.63465232,2775.4,2775.3,29.284232]
[1724449855261,3.32478232,2776.3,2775.6,3.60278]
[1724449855462,3.32478232,2776.3,2775.7,0.55]
[1724449855658,0.05495117,2776.2,2775.7,0.55]
[1724449855978,3.32478232,2776.3,2775.7,0.55]
[1724449858214,9.0359,2776.2,2775.7,0.55]
[1724449859673,9.0359,2776.2,2775.7,4.15264]
[1724449860035,9.0359,2776.2,2775.7,0.55]
[1724449861921,12.63756,2776.5,2775.7,4.228066]
[1724449862165,0.05381082,2776.4,2775.7,4.228066]
[1724449862521,0.05381082,2776.4,2775.8,3.60255]
[1724449862815,0.05381082,2776.4,2776.0,3.60228]
[1724449864158,3.60146,2776.7,2776.0,7.27648766]
[1724449864313,0.432573,2777.2,2775.9,0.55]
[1724449864314,9.0359,2777.0,2776.6,3.60144]
[1724449864518,9.0359,2777.4,2776.6,3.60152]
[1724449864718,9.0359,2777.4,2776.4,9.1852]
[1724449864719,9.0359,2777.4,2776.9,3.6011]
[1724449865183,9.0359,2777.4,2776.8,7.20241]
[1724449865468,9.0359,2777.4,2776.9,3.6011]
[1724449865635,0.04919504,2777.3,2776.9,3.6011]
[1724449866169,0.04919504,2777.3,2776.9,1.638747]
[1724449866467,0.04919504,2777.3,2777.2,3.60074]
[1724449866677,3.59988,2777.9,2777.2,3.60074]
[1724449866968,3.59988,2777.9,2777.3,3.60057]
[1724449869246,0.05027792,2777.8,2777.3,3.60057]
[1724449869758,0.05027792,2777.8,2777.3,7.20114]
[1724449869957,12.63567,2778.0,2777.3,7.20114]
[1724449869958,9.0359,2778.0,2777.4,3.60038]
[1724449870145,0.05037136,2777.9,2777.4,3.60038]
[1724449871478,0.05037136,2777.9,2777.4,4.320475]
[1724449871971,0.05037136,2777.9,2777.4,13.654175]
[1724449872179,7.19931,2778.1,2777.4,13.654175]
[1724449872339,3.59964,2778.1,2777.4,13.654175]
[1724449872979,0.05050876,2778.0,2777.4,13.654175]
[1724449874381,0.05050876,2778.0,2777.5,1.7254745]
[1724449875388,0.05050876,2778.0,2777.5,5.3258245]
[1724449881911,0.05050876,2778.0,2777.5,8.9260945]
[1724449882271,3.59938,2778.3,2777.6,3.60021]
[1724449882602,3.59948,2778.2,2777.6,3.60021]
[1724449882783,3.65011717,2778.2,2777.6,3.60021]
[1724449884091,3.65011717,2778.2,2777.7,5.137]
[1724449884689,3.65011717,2778.2,2777.6,7.34167478]
[1724449887003,7.24965717,2778.2,2777.6,7.34167478]
[1724449887352,3.65011717,2778.2,2777.6,3.60021]
[1724449887478,7.24967717,2778.2,2777.6,3.60021]
[1724449887675,3.65011717,2778.2,2777.6,3.60021]
[1724449894856,3.65011717,2778.2,2777.6,3.60016]
[1724449895855,3.65011717,2778.2,2777.6,7.20032]
[1724449896027,3.65011717,2778.2,2777.0,0.55]
[1724449896028,1.946,2777.9,2777.0,4.9103]
[1724449896368,3.60049,2777.4,2777.0,4.9103]
[1724449897122,3.60049,2777.4,2776.8,8.50565]
[1724449897323,3.60049,2777.4,2776.8,6.115094]
[1724449897521,3.60069,2777.3,2776.8,6.115094]
[1724449897763,3.60086,2777.2,2776.5,4.9044]
[1724449897933,3.60102,2777.0,2776.5,4.9044]
[1724449898264,0.04711048,2776.9,2776.5,4.9044]
[1724449898467,0.04711048,2776.9,2776.5,8.50604]
[1724449898967,0.04703297,2776.8,2776.5,4.9044]
[1724449899265,3.60086,2777.2,2776.5,9.716811]
[1724449899419,0.04689552,2776.7,2776.5,9.716811]
[1724449899622,7.2017,2777.2,2776.5,9.716811]
[1724449899849,0.046818,2776.6,2776.5,9.716811]
[1724449900079,3.60085,2777.2,2776.5,9.716811]
[1724449900491,0.04720555,2777.1,2776.5,9.716811]
[1724449900698,0.04720555,2777.1,2776.6,1.13582963]
[1724449901201,3.60075,2777.2,2776.6,1.13582963]
[1724449901396,0.04712005,2777.0,2776.5,8.50595]
[1724449901581,3.60057,2777.4,2776.7,3.60131]
[1724449901787,0.04735254,2777.3,2776.5,15.94594]
[1724449902099,0.04735254,2777.3,2776.6,1.594594]
[1724449902812,0.04735254,2777.3,2776.7,3.60137]
[1724449903301,3.64798254,2777.3,2776.7,3.60137]
[1724449904653,3.64798254,2777.3,2776.6,1.594594]
[1724449904850,3.64798254,2777.3,2776.6,5.196044]
[1724449905901,0.04735254,2777.3,2776.7,5.7155174]
[1724449906212,3.60062,2777.3,2776.8,4.9044]
[1724449906420,0.04693144,2777.2,2776.8,4.9044]
[1724449906577,0.04693144,2777.2,2776.5,15.94597]
[1724449906777,0.04693144,2777.2,2776.6,3.60145]
[1724449906969,0.04693144,2777.2,2776.5,19.524567]
[1724449907179,7.20131,2777.3,2776.6,3.60149]
[1724449907399,0.04693144,2777.2,2776.6,3.60149]
[1724449907811,3.64774144,2777.2,2776.5,19.524557]
[1724449908410,3.64774144,2777.2,2776.5,23.126137]
[1724449909112,3.64774144,2777.2,2776.5,23.126117]
[1724449909329,3.60095,2777.1,2776.5,12.3444]
[1724449909612,3.60095,2777.1,2776.5,7.44]
[1724449910316,3.60116,2776.9,2776.5,7.44]
[1724449911013,3.60095,2777.1,2776.5,7.44]
[1724449911711,3.6011,2777.0,2776.5,7.44]
[1724449912787,0.04506623,2776.9,2776.5,7.44]
[1724449913277,3.64621623,2776.9,2776.5,7.44]
[1724449913480,0.4089,2776.8,2776.5,7.44]
[1724449913680,0.4089,2776.8,2776.3,19.84]
[1724449913893,0.04472318,2776.7,2776.3,23.44189]
[1724449914216,3.60168,2776.5,2775.9,7.90346]
[1724449914695,0.04444659,2776.4,2775.9,7.90346]
[1724449914884,0.04444659,2776.4,2775.9,9.28466222]
[1724449918080,0.04444659,2776.4,2775.9,7.90346]
[1724449926648,0.04444659,2776.4,2775.9,11.50581]
[1724449926862,0.04444659,2776.4,2776.0,3.60224]
[1724449927368,3.60142,2776.7,2776.0,3.60224]
[1724449927660,3.60142,2776.7,2776.1,3.60216]
[1724449927862,0.04285765,2776.6,2776.1,3.60216]
[1724449929869,3.60142,2776.7,2776.1,3.60216]
[1724449930226,0.04284965,2776.6,2776.1,3.60216]
[1724449930553,3.60142,2776.7,2776.1,3.60216]
[1724449930756,3.60122,2776.9,2776.2,4.6213]
[1724449930757,3.60127,2776.8,2776.2,4.6213]
[1724449930956,3.0,2777.0,2776.3,3.60179]
[1724449930957,0.04284965,2776.6,2776.3,3.60179]
[1724449931173,0.04281127,2776.7,2776.4,4.6213]
[1724449931337,6.60103,2777.0,2776.4,8.22307]
[1724449931665,0.04296635,2776.9,2776.4,8.22307]
[1724449931871,0.04296635,2776.9,2776.4,9.19594576]
[1724449932766,3.60128,2776.8,2776.4,4.6213]
[1724449932940,0.04283053,2776.7,2776.4,4.6213]
[1724449933344,3.60128,2776.8,2776.4,4.6213]
[1724449933551,0.04275298,2776.6,2776.4,4.6213]
[1724449933755,0.04259572,2776.5,2776.4,4.6213]
[1724449934074,3.60128,2776.8,2776.4,4.6213]
[1724449934229,0.04259572,2776.5,2776.4,4.6213]
[1724449934423,3.60128,2776.8,2776.4,4.6213]
[1724449934769,0.04281767,2776.7,2776.4,4.6213]
[1724449935267,0.04160012,2776.6,2776.4,4.6213]
[1724449935767,3.60128,2776.8,2776.4,4.6213]
[1724449935976,0.04152256,2776.5,2776.4,4.6213]
[1724449936179,3.0,2776.7,2775.9,8.04276]
[1724449936336,3.64318256,2776.5,2775.9,8.04276]
[1724449936533,3.6432441,2776.6,2776.1,4.4404]
[1724449936833,0.04149057,2776.5,2776.1,4.4404]
[1724449937759,3.60179,2776.4,2776.1,4.4404]
[1724449938060,0.0418651,2776.3,2776.1,4.4404]
[1724449951408,3.60155,2776.6,2776.1,4.4404]
[1724449951711,0.04193052,2776.5,2776.2,3.616]
[1724449955318,3.60179,2776.4,2776.2,3.616]
[1724449955688,0.04203215,2776.3,2776.2,3.616]
[1724449956714,3.60155,2776.6,2776.2,3.616]
[1724449957083,0.04218722,2776.5,2776.2,3.616]
[1724449957494,3.64385722,2776.5,2776.2,3.616]
[1724449963272,0.04218722,2776.5,2776.2,3.616]
[1724449963973,3.64384722,2776.5,2776.2,3.616]
[1724449967523,3.60187,2776.4,2776.2,3.616]
[1724449967910,0.04197217,2776.3,2776.2,3.96364]
[1724449968114,0.04197217,2776.3,2776.2,11.37728]
[1724449968407,7.20114,2777.4,2776.7,3.8116]
[1724449968722,3.64043687,2777.3,2776.7,3.8116]
[1724449969723,3.0,2777.2,2776.7,3.8116]
[1724449969886,3.0,2777.2,2776.8,3.8116]
[1724449973595,6.60075,2777.2,2776.8,3.8116]
[1724449974894,0.03985232,2777.1,2776.8,3.8116]
[1724449975428,6.60075,2777.2,2776.8,3.8116]
[1724449975730,0.03985232,2777.1,2776.8,3.8116]
[1724449975878,0.03985232,2777.1,2776.8,4.3412904]
[1724449976074,6.60075,2777.2,2776.8,4.3412904]
[1724449979525,0.03986432,2777.1,2776.8,4.3412904]
[1724449979877,6.60075,2777.2,2776.8,4.3412904]
[1724449980081,0.03986432,2777.1,2776.8,4.3412904]
[1724449980386,6.60075,2777.2,2776.8,4.3412904]
[1724449980727,0.03987235,2777.1,2776.8,4.3412904]
[1724449981033,0.03987235,2777.1,2776.9,0.58265944]
[1724449981197,3.0,2777.3,2777.0,3.5775]
[1724449981401,6.60062,2777.3,2777.0,3.5775]
[1724449982321,3.0,2777.3,2777.0,3.5775]
[1724449982502,3.60056,2777.4,2777.0,3.5775]
[1724449982688,3.60056,2777.4,2777.2,3.5775]
[1724449983032,7.20113,2777.4,2777.2,3.5775]
[1724449983238,0.04003534,2777.3,2777.2,3.5775]
[1724449990643,3.60032,2777.6,2777.2,3.5775]
[1724449990823,0.0391471,2777.5,2777.2,3.5775]
[1724449991544,3.6395371,2777.5,2777.2,3.5775]
[1724449992412,0.0391471,2777.5,2777.2,3.5775]
[1724449993942,3.6395171,2777.5,2777.2,3.5775]
[1724450002351,3.60057,2777.4,2777.2,3.5775]
[1724450002557,3.60061,2777.3,2777.2,3.5775]
[1724450002808,0.03680152,2777.3,2777.2,3.93525]
[1724450002969,0.03680152,2777.3,2777.2,10.95313]
[1724450003175,3.59962,2778.1,2777.4,3.3939]
[1724450003653,0.03599796,2778.0,2777.4,3.3939]
[1724450003988,3.63574796,2778.0,2777.4,3.3939]
[1724450004199,3.0,2777.9,2777.4,4.129139]
[1724450006409,0.03584305,2777.8,2777.4,3.3939]
[1724450007207,3.0,2778.0,2777.4,3.3939]
[1724450007372,0.03576559,2777.7,2777.4,3.60048]
[1724450007578,3.59959,2778.1,2777.6,3.3939]
[1724450009625,6.59934,2778.3,2777.6,3.3939]
[1724450009762,3.0,2778.3,2777.8,3.59992]
[1724450009964,0.03666582,2778.2,2777.9,3.5998]
[1724450010206,0.03666582,2778.2,2778.0,3.3939]
[1724450010393,3.59893,2778.6,2778.0,3.3939]
[1724450010574,0.03662844,2778.1,2778.0,3.3939]
[1724450011090,3.59893,2778.6,2778.0,3.3939]
[1724450011301,0.03693816,2778.5,2778.0,4.1652668]
[1724450012413,0.03693816,2778.5,2778.0,3.3939]
[1724450012618,3.5993,2778.4,2778.0,3.3939]
[1724450012919,0.03589508,2778.3,2778.0,3.3939]
[1724450013624,3.63533508,2778.3,2778.0,3.3939]
[1724450013808,0.03589508,2778.3,2778.0,3.3939]
[1724450013985,3.63528508,2778.3,2778.0,3.3939]
[1724450014520,0.03589508,2778.3,2778.0,3.3939]
[1724450016018,0.03589508,2778.3,2778.0,4.093283]
[1724450016219,0.03589508,2778.3,2778.0,4.299073]
[1724450016424,3.59899,2778.6,2778.1,3.26]
[1724450016627,0.0358056,2778.2,2778.1,3.26]
[1724450017126,3.59899,2778.6,2778.1,3.26]
[1724450017310,0.0358056,2778.2,2778.1,4.0159073]
[1724450017474,3.59869,2778.8,2778.2,3.2528]
[1724450017675,0.03619271,2778.7,2778.2,3.2528]
[1724450019792,3.63499271,2778.7,2778.2,3.2528]
[1724450028339,0.03619271,2778.7,2778.2,3.2528]
[1724450029149,3.63500271,2778.7,2778.2,3.2528]
[1724450030294,3.59899,2778.6,2778.2,3.2528]
[1724450030444,3.59929,2778.4,2778.2,3.2528]
[1724450030805,0.03450596,2778.3,2778.2,3.2528]
[1724450031207,6.59916,2778.5,2778.2,3.2528]
[1724450031425,0.03450596,2778.3,2778.2,3.2528]
[1724450031635,6.59916,2778.5,2778.2,3.2528]
[1724450031835,0.03450596,2778.3,2778.2,3.2528]
[1724450032172,6.59916,2778.5,2778.2,3.2528]
[1724450032350,0.03450596,2778.3,2778.2,3.2528]
[1724450032654,3.5992,2778.4,2778.2,3.2528]
[1724450032856,0.03450596,2778.3,2778.2,3.2528]
[1724450034432,3.59904,2778.6,2778.2,3.2528]
[1724450034620,0.03450596,2778.3,2778.2,3.2528]
[1724450034823,3.59919,2778.4,2778.2,3.2528]
[1724450035022,3.59904,2778.6,2778.2,3.2528]
[1724450035224,0.03450596,2778.3,2778.2,3.2528]